bitfinex/quotes_SOLUSD_20250417
["timestamp","ask_amount","ask_price","bid_price","bid_amount"]
[1744915822901,56.91613006,134.7,134.65,36.97613006]
[1744915823217,36.97613006,134.69,134.61,45.522367]
[1744915823381,36.97613006,134.66,134.59,71.522367]
[1744915823581,36.97613006,134.66,134.61,36.97613006]
[1744915823884,36.97613006,134.68,134.64,36.97613006]
[1744915824410,36.97613006,134.68,134.63,36.97613006]
[1744915824872,36.97613006,134.68,134.64,36.97613006]
[1744915825281,56.1587343,134.69,134.64,56.1587343]
[1744915826812,6.1151,134.72,134.68,56.1587343]
[1744915826991,56.1587343,134.71,134.66,56.1587343]
[1744915827700,56.1587343,134.71,134.67,56.1587343]
[1744915830911,56.1587343,134.68,134.64,56.1587343]
[1744915831197,26.0,134.69,134.62,56.1587343]
[1744915831420,56.1587343,134.67,134.62,56.1587343]
[1744915831907,56.1587343,134.67,134.64,56.1587343]
[1744915831908,25.99034669,134.67,134.64,56.1587343]
[1744915832114,7.42555877,134.67,134.65,56.1587343]
[1744915832901,7.42555877,134.67,134.61,101.6811013]
[1744915833102,7.42555877,134.67,134.65,56.1587343]
[1744915833702,37.11676935,134.71,134.63,56.1587343]
[1744915833703,82.14626028,134.68,134.63,56.1587343]
[1744915834013,82.14626028,134.68,134.61,56.1587343]
[1744915834014,56.1587343,134.65,134.61,56.1587343]
[1744915834213,56.1587343,134.65,134.6,56.1587343]
[1744915834514,56.1587343,134.65,134.58,51.765867]
[1744915834722,56.1587343,134.65,134.6,56.1587343]
[1744915835089,56.1587343,134.65,134.61,56.1587343]
[1744915835286,63.1125631,134.68,134.63,56.1587343]
[1744915835512,25.98752598,134.68,134.65,56.1587343]
[1744915835699,18.56251856,134.68,134.65,56.1587343]
[1744915836114,18.56251856,134.68,134.64,56.1587343]
[1744915836804,18.56251856,134.68,134.65,56.1587343]
[1744915837833,25.98752598,134.68,134.65,56.1587343]
[1744915838130,25.98752598,134.68,134.64,56.1587343]
[1744915838420,25.98752598,134.68,134.65,56.1587343]
[1744915838625,25.98752598,134.68,134.66,56.1587343]
[1744915839504,7.42441634,134.7,134.67,56.1587343]
[1744915839708,18.61893785,134.73,134.69,56.1587343]
[1744915839930,18.61893785,134.73,134.66,0.42648471]
[1744915840117,18.61893785,134.73,134.7,56.1587343]
[1744915840836,18.61893785,134.73,134.66,90.61025042]
[1744915841132,18.61893785,134.73,134.7,56.1587343]
[1744915842007,26.04118976,134.73,134.7,56.1587343]
[1744915843731,7.48525191,134.73,134.71,56.1587343]
[1744915843933,7.48525191,134.73,134.7,56.1587343]
[1744915844937,7.48525191,134.73,134.67,89.1348]
[1744915845141,7.48525191,134.73,134.7,56.1587343]
[1744915846044,0.063,134.73,134.7,56.1587343]
[1744915847217,37.0034884,134.72,134.67,119.9034884]
[1744915847418,37.0034884,134.72,134.68,37.0034884]
[1744915847641,37.0664884,134.73,134.69,37.0034884]
[1744915848041,0.063,134.73,134.7,37.0034884]
[1744915850061,37.0664884,134.73,134.67,82.9]
[1744915850335,7.42335387,134.71,134.68,37.0034884]
[1744915851222,7.42335387,134.71,134.69,37.0034884]
[1744915851529,7.4229645,134.72,134.7,37.0034884]
[1744915851730,7.4229645,134.72,134.68,37.0034884]
[1744915852040,7.48527456,134.73,134.71,37.0034884]
[1744915852249,0.063,134.73,134.72,37.0034884]
[1744915853431,0.063,134.73,134.69,19.18]
[1744915853625,0.063,134.73,134.68,110.5047]
[1744915853825,0.063,134.73,134.7,37.0034884]
[1744915854235,0.063,134.73,134.68,26.0]
[1744915854442,0.063,134.73,134.69,37.0034884]
[1744915854621,37.0034884,134.72,134.68,63.0034884]
[1744915854825,37.0034884,134.72,134.67,37.0034884]
[1744915855530,25.98173854,134.71,134.68,37.0034884]
[1744915855734,25.95311659,134.71,134.67,37.0034884]
[1744915856746,25.95311659,134.71,134.68,37.0034884]
[1744915856918,7.39473192,134.71,134.66,90.32602321]
[1744915857119,7.39473192,134.71,134.69,37.0034884]
[1744915857540,26.04126174,134.73,134.69,37.0034884]
[1744915858335,7.48525191,134.73,134.7,37.0034884]
[1744915858849,7.48525191,134.73,134.72,37.0034884]
[1744915859150,0.063,134.73,134.72,37.0034884]
[1744915861154,0.063,134.73,134.71,37.0034884]
[1744915861939,0.063,134.73,134.7,37.0034884]
[1744915862254,0.063,134.73,134.71,37.0034884]
[1744915863353,0.063,134.73,134.72,37.0034884]
[1744915865943,0.063,134.73,134.69,20.14216157]
[1744915866245,0.063,134.73,134.7,37.0034884]
[1744915867461,37.0034884,134.71,134.65,37.0034884]
[1744915867755,62.99101438,134.68,134.63,37.0034884]
[1744915868232,25.98752598,134.68,134.64,37.0034884]
[1744915868745,7.42500742,134.68,134.65,37.0034884]
[1744915868953,7.42500742,134.68,134.67,37.0034884]
[1744915869153,7.42500742,134.68,134.62,90.32817101]
[1744915869354,62.99101438,134.68,134.63,37.0034884]
[1744915870057,62.99101438,134.68,134.62,26.0]
[1744915870245,37.0034884,134.67,134.61,26.0]
[1744915870450,37.0034884,134.67,134.62,37.0034884]
[1744915870849,37.0034884,134.67,134.63,37.0034884]
[1744915871050,37.0034884,134.67,134.61,26.0]
[1744915871254,25.98752598,134.68,134.62,37.0034884]
[1744915871447,37.0034884,134.67,134.62,37.0034884]
[1744915871848,7.4261102,134.66,134.62,37.0034884]
[1744915872438,25.9913857,134.66,134.62,37.0034884]
[1744915873167,62.9948741,134.66,134.62,37.0034884]
[1744915873368,25.9913857,134.66,134.61,37.0034884]
[1744915873546,25.9913857,134.66,134.6,26.03]
[1744915873547,25.9913857,134.66,134.63,37.0034884]
[1744915873743,7.4261102,134.66,134.65,37.0034884]
[1744915874064,18.56273848,134.68,134.65,37.0034884]
[1744915874267,55.56622688,134.68,134.61,26.0]
[1744915874438,18.56273848,134.68,134.65,37.0034884]
[1744915874639,7.42445615,134.69,134.67,37.0034884]
[1744915874937,7.42445615,134.69,134.68,37.0034884]
[1744915875440,7.42445615,134.69,134.67,37.0034884]
[1744915875640,62.98908494,134.69,134.61,69.2613884]
[1744915875864,62.98908494,134.69,134.64,37.0034884]
[1744915876065,37.0034884,134.66,134.6,0.03]
[1744915876271,18.64964886,134.65,134.6,0.03]
[1744915876467,25.21364886,134.65,134.6,0.03]
[1744915876976,37.0034884,134.64,134.6,37.0334884]
[1744915877161,43.5674884,134.65,134.6,37.0334884]
[1744915877563,37.0034884,134.64,134.6,0.03]
[1744915877766,37.0034884,134.62,134.6,0.03]
[1744915877964,7.42886858,134.61,134.6,0.03]
[1744915878168,44.43235698,134.61,134.6,0.03]
[1744915878357,7.42886858,134.61,134.6,0.03]
[1744915878951,44.43235698,134.61,134.6,0.03]
[1744915879170,7.42886858,134.61,134.6,0.03]
[1744915879777,7.42886858,134.61,134.6,37.0334884]
[1744915879975,7.4272133,134.64,134.6,37.0334884]
[1744915880159,7.4272133,134.64,134.61,37.0034884]
[1744915881377,7.4272133,134.64,134.62,37.0034884]
[1744915881670,7.42691712,134.65,134.63,37.0034884]
[1744915881879,7.42691712,134.65,134.64,37.0034884]
[1744915882176,25.9894557,134.67,134.63,37.0034884]
[1744915882373,25.9894557,134.67,134.6,82.93]
[1744915882676,62.9929441,134.67,134.62,37.0034884]
[1744915883053,7.42555877,134.67,134.64,37.0034884]
[1744915883277,7.42555877,134.67,134.66,37.0034884]
[1744915883963,33.42390497,134.7,134.66,37.0034884]
[1744915884477,7.42390497,134.7,134.67,37.0034884]
[1744915885876,25.9836674,134.7,134.67,37.0034884]
[1744915886179,37.0034884,134.69,134.64,37.0034884]
[1744915886480,25.9836674,134.7,134.67,37.0034884]
[1744915887468,18.55976243,134.7,134.67,37.0034884]
[1744915887775,55.56325083,134.7,134.65,37.0034884]
[1744915887979,55.56325083,134.7,134.64,37.0034884]
[1744915887980,37.0034884,134.69,134.64,37.0034884]
[1744915888181,18.55976243,134.7,134.61,89.3792]
[1744915888182,37.0034884,134.68,134.61,89.3792]
[1744915888363,37.0034884,134.67,134.62,37.0034884]
[1744915888673,18.55976243,134.7,134.63,37.0034884]
[1744915888976,37.0034884,134.68,134.63,37.0034884]
[1744915889157,37.0034884,134.67,134.62,37.0034884]
[1744915889358,37.0034884,134.68,134.63,37.0034884]
[1744915889553,7.42555877,134.67,134.6,0.03]
[1744915889777,37.0034884,134.62,134.6,0.03]
[1744915890075,37.0034884,134.61,134.6,0.03]
[1744915890274,37.0034884,134.62,134.6,0.03]
[1744915890877,37.0034884,134.61,134.6,0.03]
[1744915891873,7.42886858,134.61,134.6,0.03]
[1744915893088,44.43235698,134.61,134.6,0.03]
[1744915894887,7.42886858,134.61,134.6,0.03]
[1744915895389,7.4272133,134.64,134.6,37.0334884]
[1744915895699,7.4261102,134.66,134.63,37.0034884]
[1744915895872,7.4261102,134.66,134.64,37.0034884]
[1744915896269,18.56412362,134.67,134.65,37.0034884]
[1744915896496,7.42500742,134.68,134.64,37.0034884]
[1744915896699,7.42500742,134.68,134.66,37.0034884]
[1744915896898,7.42500742,134.68,134.65,37.0034884]
[1744915897497,25.98752598,134.68,134.61,82.9]
[1744915897698,37.0034884,134.66,134.61,82.9]
[1744915897993,37.0034884,134.66,134.62,37.0034884]
[1744915898397,7.42666171,134.65,134.61,37.0034884]
[1744915898603,25.99331599,134.65,134.61,37.0034884]
[1744915898897,25.99331599,134.65,134.62,37.0034884]
[1744915899783,18.56665428,134.65,134.6,0.03]
[1744915899979,18.56665428,134.65,134.62,37.0034884]
[1744915900193,18.56665428,134.65,134.6,0.03]
[1744915900388,18.56665428,134.65,134.61,37.0034884]
[1744915900593,18.56665428,134.65,134.62,37.0034884]
[1744915902199,25.99331599,134.65,134.61,37.0034884]
[1744915902399,37.0034884,134.62,134.6,0.03]
[1744915902591,37.0034884,134.61,134.6,0.03]
[1744915902995,55.65313726,134.61,134.6,1e-08]
[1744915903503,81.65313726,134.61,134.6,1e-08]
[1744915903677,44.64964886,134.61,134.6,1e-08]
[1744915903882,81.65313726,134.61,134.6,1e-08]
[1744915904375,89.08200584,134.61,134.6,1e-08]
[1744915906434,7.42886858,134.61,134.6,1e-08]
[1744915906713,44.43235698,134.61,134.6,1e-08]
[1744915907219,89.08200584,134.61,134.6,1e-08]
[1744915909999,126.08549424,134.61,134.6,1e-08]
[1744915910696,128.14667895,134.61,134.6,1e-08]
[1744915911620,7.42886858,134.61,134.6,1e-08]
[1744915912909,7.42831674,134.62,134.6,1e-08]
[1744915914695,44.43180514,134.62,134.6,1e-08]
[1744915917319,7.42831674,134.62,134.6,37.00348841]
[1744915918118,7.42831674,134.62,134.61,37.0034884]
[1744915918617,7.4272133,134.64,134.61,37.0034884]
[1744915918921,7.4261102,134.66,134.63,37.0034884]
[1744915919121,25.98559654,134.69,134.65,37.0034884]
[1744915919292,25.98559654,134.69,134.66,37.0034884]
[1744915919496,25.98559654,134.69,134.65,37.0034884]
[1744915920512,7.42445615,134.69,134.68,37.0034884]
[1744915920704,7.42445615,134.69,134.67,37.0034884]
[1744915921023,7.42280285,134.72,134.68,37.0034884]
[1744915921203,7.42280285,134.72,134.71,37.0034884]
[1744915922308,0.063,134.73,134.71,37.0034884]
[1744915922708,0.063,134.73,134.72,37.0034884]
[1744915923921,0.063,134.73,134.72,37.42997311]
[1744915924322,7.48380025,134.76,134.72,37.42997311]
[1744915924323,0.063,134.76,134.75,26.0]
[1744915924621,0.063,134.76,134.75,100.43346151]
[1744915924794,0.063,134.76,134.75,37.0034884]
[1744915925628,0.063,134.76,134.75,74.43346151]
[1744915926115,0.063,134.76,134.75,74.29129994]
[1744915926313,0.063,134.76,134.75,74.43346151]
[1744915927034,0.063,134.76,134.75,81.85461178]
[1744915927531,0.063,134.76,134.75,83.48171178]
[1744915927695,0.063,134.77,134.76,46.0]
[1744915927898,0.063,134.79,134.78,26.42648471]
[1744915928106,0.063,134.79,134.78,63.42997311]
[1744915929529,0.063,134.79,134.78,63.0034884]
[1744915930528,0.063,134.79,134.78,97.46047155]
[1744915930731,0.063,134.79,134.78,90.04097311]
[1744915931215,0.063,134.79,134.78,172.94097311]
[1744915931523,0.063,134.79,134.78,199.01012041]
[1744915931916,0.063,134.81,134.8,20.0]
[1744915932113,0.063,134.81,134.8,113.08311037]
[1744915932512,0.063,134.81,134.8,76.07962197]
[1744915932833,0.063,134.81,134.8,83.49801959]
[1744915933336,0.063,134.81,134.8,57.42997311]
[1744915933627,0.063,134.81,134.8,83.49801959]
[1744915934531,0.063,134.81,134.8,120.50150799]
[1744915935328,0.063,134.85,134.84,37.42997311]
[1744915935632,0.063,134.85,134.84,120.26697311]
[1744915936634,0.063,134.85,134.84,119.8404884]
[1744915937829,0.063,134.85,134.84,120.26697311]
[1744915938134,0.063,134.85,134.84,82.837]
[1744915938334,0.063,134.85,134.84,119.8404884]
[1744915939416,0.063,134.85,134.84,82.837]
[1744915940430,0.063,134.85,134.84,119.8404884]
[1744915941131,0.063,134.85,134.84,37.0034884]
[1744915943130,0.063,134.85,134.84,23.07177145]
[1744915943515,0.063,134.85,134.84,23.49825616]
[1744915944128,0.063,134.85,134.84,23.07177145]
[1744915944939,0.063,134.85,134.84,23.49825616]
[1744915945338,0.063,134.85,134.84,23.35609459]
[1744915945540,0.063,134.85,134.84,23.49825616]
[1744915947045,0.063,134.85,134.84,106.33525616]
[1744915947954,0.063,134.85,134.82,82.837]
[1744915948131,23.07177145,134.84,134.78,82.837]
[1744915948520,23.13477145,134.85,134.8,23.07177145]
[1744915949121,23.07177145,134.83,134.79,23.07177145]
[1744915949334,24.64617145,134.85,134.81,23.07177145]
[1744915949749,25.9566894,134.84,134.81,23.07177145]
[1744915949946,7.41619697,134.84,134.83,23.07177145]
[1744915951249,0.063,134.85,134.83,23.07177145]
[1744915952546,0.063,134.85,134.81,26.0]
[1744915952745,0.063,134.85,134.84,23.07177145]
[1744915955263,0.063,134.87,134.85,38.64964886]
[1744915955571,0.063,134.91,134.9,0.42648471]
[1744915955871,0.063,134.91,134.9,23.49825616]
[1744915956767,0.063,134.91,134.9,49.49825616]
[1744915958152,0.063,134.91,134.9,49.07177145]
[1744915959153,0.063,134.91,134.9,62.87423801]
[1744915960560,0.063,134.91,134.9,63.30072272]
[1744915961357,0.063,134.91,134.9,63.15856115]
[1744915961678,0.063,134.91,134.9,70.71362116]
[1744915962772,0.063,134.91,134.9,63.30072272]
[1744915964667,0.063,134.91,134.9,146.13772272]
[1744915965067,0.063,134.91,134.9,108.837]
[1744915965263,0.063,134.91,134.9,145.71123801]
[1744915966376,0.063,134.91,134.9,108.837]
[1744915966569,0.063,134.91,134.9,145.71123801]
[1744915968582,0.063,134.91,134.9,82.837]
[1744915969084,0.063,134.91,134.89,36.87423801]
[1744915969300,0.063,134.91,134.9,36.87423801]
[1744915970378,7.47534897,134.91,134.9,36.87423801]
[1744915973785,7.47534897,134.91,134.87,26.0]
[1744915974095,7.47534897,134.91,134.9,36.87423801]
[1744915978179,26.0062214,134.91,134.86,82.837]
[1744915978387,62.88045941,134.91,134.87,36.87423801]
[1744915978684,26.0062214,134.91,134.88,36.87423801]
[1744915979158,26.0062214,134.91,134.88,23.06035047]
[1744915979358,26.0062214,134.91,134.89,23.06035047]
[1744915979779,7.47534897,134.91,134.9,23.06035047]
[1744915980360,0.063,134.91,134.9,23.06035047]
[1744915981272,0.063,134.91,134.87,0.14216157]
[1744915981462,0.063,134.91,134.9,23.06035047]
[1744915982080,26.063,134.91,134.84,107.29532541]
[1744915982264,49.12335047,134.91,134.84,101.257]
[1744915982465,25.94514454,134.9,134.84,101.257]
[1744915982685,25.94514454,134.9,134.86,23.06035047]
[1744915983872,25.94514454,134.9,134.87,23.06035047]
[1744915985675,25.94514454,134.9,134.86,23.06035047]
[1744915985881,49.00549501,134.9,134.86,23.06035047]
[1744915986287,25.94514454,134.9,134.86,23.06035047]
[1744915986600,25.94514454,134.9,134.87,23.06035047]
[1744915986895,25.94514454,134.9,134.89,23.06035047]
[1744915987192,25.94514454,134.9,134.88,23.06035047]
[1744915987489,25.94514454,134.9,134.87,23.06035047]
[1744915988989,49.00549501,134.9,134.85,23.06035047]
[1744915989188,23.06035047,134.89,134.84,23.06035047]
[1744915989568,25.94514454,134.9,134.87,23.06035047]
[1744915989773,25.94514454,134.9,134.86,23.06035047]
[1744915990394,49.00549501,134.9,134.85,23.06035047]
[1744915990592,23.06035047,134.87,134.81,0.03]
[1744915990894,23.06035047,134.87,134.83,23.06035047]
[1744915991395,49.06035047,134.87,134.81,0.03]
[1744915991685,49.06035047,134.87,134.83,23.06035047]
[1744915991987,7.41509713,134.86,134.83,23.06035047]
[1744915992300,25.95283997,134.86,134.84,23.06035047]
[1744915992473,7.41509713,134.86,134.85,23.06035047]
[1744915994091,99.45928561,134.9,134.85,23.06035047]
[1744915994369,117.87412896,134.9,134.86,23.06035047]
[1744915994570,140.93447943,134.9,134.86,23.06035047]
[1744915994771,23.06035047,134.89,134.85,23.06035047]
[1744915995081,23.06035047,134.89,134.82,108.837]
[1744915995280,23.06035047,134.89,134.85,23.06035047]
[1744915995700,117.87412896,134.9,134.85,23.06035047]
[1744915995899,140.93447943,134.9,134.85,23.06035047]
[1744915998799,140.93447943,134.9,134.86,23.06035047]
[1744915999105,7.41289844,134.9,134.89,23.06035047]
[1744915999281,7.41289844,134.9,134.88,23.06035047]
[1744916000605,7.47534897,134.91,134.88,23.06035047]
[1744916002502,7.47534897,134.91,134.89,23.06035047]
[1744916002676,0.063,134.91,134.89,23.06035047]
[1744916003080,0.063,134.91,134.9,23.06035047]
[1744916006811,0.063,134.91,134.87,108.97916157]
[1744916006986,0.063,134.91,134.88,23.06035047]
[1744916007679,0.063,134.91,134.89,23.06035047]
[1744916008106,0.063,134.91,134.87,108.837]
[1744916008295,0.063,134.91,134.89,23.06035047]
[1744916008681,0.063,134.91,134.88,23.06035047]
[1744916008880,0.063,134.91,134.87,82.837]
[1744916009078,0.063,134.91,134.87,105.89735047]
[1744916009305,0.063,134.91,134.85,82.837]
[1744916009306,23.06035047,134.9,134.85,82.837]
[1744916009487,23.06035047,134.9,134.85,105.89735047]
[1744916009683,23.06035047,134.9,134.86,23.06035047]
[1744916009889,23.12335047,134.91,134.86,23.06035047]
[1744916010394,23.06035047,134.9,134.85,105.89735047]
[1744916010708,7.41344799,134.89,134.87,23.06035047]
[1744916011003,7.41344799,134.89,134.88,23.06035047]
[1744916011203,0.063,134.91,134.88,23.06035047]
[1744916011408,7.47556745,134.91,134.9,23.06035047]
[1744916011608,7.47556745,134.91,134.9,23.20251204]
[1744916011609,0.063,134.91,134.9,23.20251204]
[1744916011792,0.063,134.91,134.9,105.89735047]
[1744916012110,0.063,134.91,134.9,82.837]
[1744916012312,0.063,134.91,134.9,105.89735047]
[1744916013994,0.063,134.91,134.87,100.637]
[1744916014188,0.063,134.91,134.87,82.837]
[1744916014384,0.063,134.91,134.88,23.06035047]
[1744916016003,0.063,134.91,134.87,105.89735047]
[1744916016616,0.063,134.91,134.87,23.06035047]
[1744916017486,0.063,134.91,134.88,23.06035047]
[1744916018418,0.063,134.91,134.87,23.06035047]
[1744916018716,0.063,134.91,134.88,23.06035047]
[1744916020827,0.063,134.91,134.86,26.0]
[1744916021016,0.063,134.91,134.87,23.06035047]
[1744916021417,0.063,134.91,134.88,23.06035047]
[1744916022314,0.063,134.91,134.89,23.06035047]
[1744916023227,0.063,134.91,134.86,26.0]
[1744916023228,0.063,134.91,134.9,23.06035047]
[1744916023706,0.063,134.91,134.89,23.06035047]
[1744916023892,0.063,134.91,134.87,0.42648471]
[1744916024096,0.063,134.91,134.89,23.06035047]
[1744916024294,0.063,134.91,134.88,23.06035047]
[1744916024526,0.063,134.91,134.87,23.06035047]
[1744916024826,23.12335047,134.91,134.86,49.06035047]
[1744916025004,0.063,134.91,134.87,23.06035047]
[1744916026006,0.063,134.91,134.88,23.06035047]
[1744916029806,0.063,134.91,134.89,23.06035047]
[1744916030036,0.063,134.91,134.9,23.06035047]
[1744916030729,0.063,134.91,134.89,23.06035047]
[1744916032132,0.063,134.91,134.87,26.0]
[1744916032334,0.063,134.91,134.88,23.06035047]
[1744916033728,0.063,134.91,134.85,26.42648471]
[1744916033930,0.063,134.91,134.87,23.06035047]
[1744916034134,25.94514454,134.9,134.86,23.06035047]
[1744916034331,25.94514454,134.9,134.83,100.637]
[1744916034530,25.94514454,134.9,134.86,23.06035047]
[1744916034723,25.94514454,134.9,134.87,23.06035047]
[1744916034925,25.94514454,134.9,134.88,23.06035047]
[1744916036233,0.063,134.91,134.88,23.06035047]
[1744916037521,0.063,134.91,134.87,23.06035047]
[1744916038444,0.063,134.91,134.88,23.06035047]
[1744916039119,0.063,134.91,134.87,23.06035047]
[1744916040841,0.063,134.91,134.88,23.06035047]
[1744916043042,0.063,134.91,134.89,23.06035047]
[1744916043255,0.063,134.91,134.85,0.28432314]
[1744916043256,0.063,134.91,134.9,23.06035047]
[1744916044247,0.063,134.91,134.9,106.32383518]
[1744916045324,0.063,134.91,134.9,124.97348404]
[1744916046537,0.063,134.91,134.9,132.38638248]
[1744916047535,0.063,134.94,134.92,46.31054886]
[1744916047845,0.063,134.97,134.96,26.0]
[1744916048025,0.063,134.97,134.96,23.06035047]
[1744916048225,51.52743357,135.01,135.0,31.09501284]
[1744916048425,0.42648471,135.0,134.93,23.06035047]
[1744916048650,23.06035047,134.98,134.94,23.06035047]
[1744916048948,23.06035047,134.99,134.95,23.06035047]
[1744916049150,23.06035047,135.0,134.95,23.06035047]
[1744916049356,25.98700562,135.01,134.99,23.06035047]
[1744916049667,0.063,135.01,135.0,23.06035047]
[1744916050650,0.063,135.01,134.99,26.0]
[1744916050948,0.063,135.01,134.99,49.06035047]
[1744916051140,0.063,135.01,135.0,23.06035047]
[1744916054530,0.063,135.01,134.99,108.837]
[1744916054733,0.063,135.01,135.0,23.06035047]
[1744916055856,0.063,135.01,134.97,82.837]
[1744916056053,23.06035047,135.0,134.97,82.837]
[1744916056557,23.06035047,134.99,134.95,23.06035047]
[1744916056765,23.06035047,134.99,134.91,88.85778578]
[1744916056766,23.06035047,134.96,134.91,88.85778578]
[1744916056937,26.0,134.99,134.91,105.89735047]
[1744916057253,23.06035047,134.95,134.91,82.837]
[1744916057457,23.06035047,134.96,134.91,105.89735047]
[1744916059866,23.06035047,134.96,134.92,23.06035047]
[1744916061656,23.06035047,134.97,134.92,23.06035047]
[1744916063269,23.06035047,134.93,134.89,26.0]
[1744916063469,6.4961,134.96,134.91,23.06035047]
[1744916063658,23.06035047,134.97,134.92,49.06035047]
[1744916063854,23.06035047,134.97,134.93,23.06035047]
[1744916064159,25.430072,135.0,134.92,26.0]
[1744916064160,25.14574886,135.0,134.94,23.06035047]
[1744916064344,23.06035047,134.99,134.94,23.06035047]
[1744916064545,23.06035047,134.98,134.94,23.06035047]
[1744916064757,7.40905386,134.97,134.93,23.06035047]
[1744916065859,7.40905386,134.97,134.94,23.06035047]
[1744916066750,30.46940433,134.97,134.92,49.06035047]
[1744916067782,30.46940433,134.97,134.93,23.06035047]
[1744916069167,30.46940433,134.97,134.92,49.06035047]
[1744916069471,23.06035047,134.95,134.92,26.0]
[1744916070261,23.06035047,134.93,134.89,105.89735047]
[1744916070663,23.06035047,134.93,134.89,82.837]
[1744916070966,23.06035047,134.93,134.89,131.89735047]
[1744916071165,23.06035047,134.93,134.89,108.837]
[1744916071578,23.06035047,134.93,134.89,131.89735047]
[1744916072253,7.41179958,134.92,134.89,131.89735047]
[1744916073763,30.47215005,134.92,134.89,108.837]
[1744916074270,7.41179958,134.92,134.89,108.837]
[1744916074873,7.41179958,134.92,134.87,0.063]
[1744916074874,23.06035047,134.9,134.87,0.063]
[1744916075071,23.06035047,134.89,134.87,0.063]
[1744916075310,23.06035047,134.88,134.87,0.063]
[1744916075852,23.06035047,134.89,134.87,0.063]
[1744916076076,23.06035047,134.9,134.87,0.063]
[1744916076378,58.47009854,134.92,134.87,0.063]
[1744916076590,23.06035047,134.9,134.87,0.063]
[1744916077049,23.06035047,134.89,134.87,0.063]
[1744916078469,7.41399762,134.88,134.87,0.063]
[1744916080184,30.47434809,134.88,134.87,0.063]
[1744916082799,7.41399762,134.88,134.87,0.063]
[1744916083165,30.47434809,134.88,134.87,0.063]
[1744916084388,7.41399762,134.88,134.87,0.063]
[1744916085467,30.47434809,134.88,134.87,0.063]
[1744916092807,18.53265494,134.9,134.87,0.063]
[1744916093098,41.59300541,134.9,134.87,0.063]
[1744916093304,33.29409406,134.9,134.87,0.063]
[1744916093999,14.76143912,134.88,134.87,0.063]
[1744916094897,33.41108798,134.88,134.87,0.063]
[1744916095097,35.05478798,134.88,134.87,0.063]
[1744916095496,35.05478798,134.88,134.87,1e-08]
[1744916096513,42.4687856,134.88,134.87,1e-08]
[1744916097519,42.89527031,134.88,134.87,1e-08]
[1744916099590,22.17543674,134.88,134.87,1e-08]
[1744916102621,41.10940874,134.88,134.87,1e-08]
[1744916102829,41.25157031,134.88,134.87,1e-08]
[1744916103197,40.8250856,134.88,134.87,1e-08]
[1744916103695,41.25157031,134.88,134.87,1e-08]
[1744916105223,49.57622029,134.88,134.87,1e-08]
[1744916105428,26.0,134.85,134.82,0.03]
[1744916105609,23.0860891,134.83,134.82,0.03]
[1744916107244,30.50283611,134.83,134.81,0.03]
[1744916107419,30.50283611,134.83,134.81,1e-08]
[1744916107420,23.0860891,134.82,134.81,1e-08]
[1744916108213,7.41674701,134.83,134.81,1e-08]
[1744916108513,23.0860891,134.82,134.81,1e-08]
[1744916109310,7.41674701,134.83,134.81,1e-08]
[1744916109513,30.50283611,134.83,134.81,1e-08]
[1744916109835,7.41674701,134.83,134.81,1e-08]
[1744916110428,30.50283611,134.83,134.81,1e-08]
[1744916113816,7.41674701,134.83,134.81,23.08608911]
[1744916114333,23.0860891,134.82,134.81,1e-08]
[1744916116536,30.50338623,134.82,134.81,1e-08]
[1744916118322,7.41729713,134.82,134.81,1e-08]
[1744916120118,7.41729713,134.82,134.81,23.08608911]
[1744916120446,7.41619697,134.84,134.81,23.08608911]
[1744916120747,18.53973828,134.85,134.81,23.08608911]
[1744916120748,23.0860891,134.83,134.81,1e-08]
[1744916120914,25.95538529,134.85,134.81,1e-08]
[1744916121118,23.0860891,134.84,134.81,1e-08]
[1744916121334,49.04147439,134.85,134.81,23.08608911]
[1744916121635,25.95538529,134.85,134.81,23.08608911]
[1744916121843,25.95538529,134.85,134.83,23.0860891]
[1744916121844,7.41564701,134.85,134.83,23.0860891]
[1744916122143,7.41564701,134.85,134.81,1e-08]
[1744916122343,7.41564701,134.85,134.81,23.08608911]
[1744916122838,7.41564701,134.85,134.83,23.0860891]
[1744916123037,7.41564701,134.85,134.84,23.0860891]
[1744916123244,7.41564701,134.85,134.83,23.0860891]
[1744916125045,25.95125141,134.87,134.82,1.5515]